bitfinex-derivatives/quotes_BTCF0:USTF0_20241110
["timestamp","ask_amount","ask_price","bid_price","bid_amount"]
[1731216430820,0.00014067,79598.0,79597.0,0.0628]
[1731216431018,0.00014067,79598.0,79597.0,0.73968]
[1731216431214,0.30914067,79599.0,79598.0,0.0628]
[1731216431408,0.30914067,79599.0,79598.0,0.43968]
[1731216431609,0.30914067,79599.0,79598.0,0.94393974]
[1731216431908,0.27140067,79599.0,79598.0,0.91881974]
[1731216432312,0.27140067,79599.0,79598.0,0.58113974]
[1731216432518,0.27140067,79599.0,79598.0,0.70579865]
[1731216432812,0.27140067,79599.0,79598.0,0.59470085]
[1731216433016,0.27140067,79599.0,79598.0,0.54440085]
[1731216433218,0.27140067,79599.0,79598.0,0.35549865]
[1731216433612,0.3608,79618.0,79598.0,0.51877649]
[1731216433914,0.3608,79618.0,79599.0,0.37688]
[1731216434417,0.3608,79611.0,79600.0,0.65284]
[1731216434618,0.3118,79611.0,79601.0,0.3116]
[1731216434916,0.3608,79618.0,79604.0,0.0628]
[1731216435214,0.01888,79624.0,79615.0,0.4236]
[1731216435418,0.3608,79655.0,79623.0,0.3608]
[1731216435609,0.3608,79655.0,79641.0,0.61145564]
[1731216435812,0.1006,79654.0,79642.0,0.3116]
[1731216436109,0.0946,79643.0,79642.0,0.18829805]
[1731216436314,0.0946,79649.0,79641.0,0.3608]
[1731216436516,0.00125221,79645.0,79641.0,0.3608]
[1731216436723,0.00125221,79645.0,79642.0,0.18862826]
[1731216436922,0.00125221,79645.0,79642.0,0.59046549]
[1731216437216,0.30910828,79655.0,79644.0,0.0628]
[1731216437415,0.30910828,79655.0,79644.0,0.3]
[1731216437616,0.30910828,79655.0,79645.0,0.56526826]
[1731216437918,0.30910828,79655.0,79647.0,0.25065564]
[1731216438223,0.01884001,79662.0,79652.0,0.3608]
[1731216438514,0.3064,79661.0,79652.0,0.38595723]
[1731216438715,0.3608,79679.0,79660.0,0.3608]
[1731216438911,0.9658,79689.0,79676.0,0.3608]
[1731216439308,0.25065564,79684.0,79676.0,0.3608]
[1731216439517,0.9658,79689.0,79676.0,0.3608]
[1731216439718,0.35656569,79696.0,79683.0,0.3608]
[1731216439922,0.3608,79711.0,79695.0,0.3608]
[1731216440225,0.25065564,79708.0,79695.0,0.3608]
[1731216440420,0.25065564,79708.0,79678.0,0.0251446]
[1731216440421,0.25065564,79698.0,79690.0,0.3608]
[1731216440822,0.90398,79699.0,79690.0,0.3608]
[1731216441023,0.9025,79699.0,79690.0,0.3608]
[1731216441220,0.6059,79699.0,79690.0,0.3608]
[1731216441423,0.6059,79699.0,79698.0,0.3608]
[1731216441626,0.2995,79699.0,79698.0,0.3608]
[1731216442120,0.01607633,79699.0,79698.0,0.7372]
[1731216442313,0.01607633,79699.0,79698.0,0.3608]
[1731216442515,0.01605487,79699.0,79698.0,0.3608]
[1731216443023,0.62755487,79699.0,79698.0,0.3608]
[1731216443214,0.62755487,79699.0,79691.0,0.0251446]
[1731216443414,0.3608,79680.0,79630.0,0.3608]
[1731216443618,0.3608,79639.0,79623.0,0.0628]
[1731216443815,0.2303,79638.0,79632.0,0.0251446]
[1731216444012,0.22661,79638.0,79632.0,0.0251446]
[1731216444215,0.58741,79638.0,79632.0,0.0251446]
[1731216444424,0.00013462,79637.0,79633.0,0.18944581]
[1731216444721,0.00013462,79637.0,79627.0,9.38e-05]
[1731216445318,0.00013462,79637.0,79627.0,0.0252384]
[1731216445922,0.00013462,79637.0,79636.0,0.3608]
[1731216446527,0.00013462,79637.0,79627.0,0.0252384]
[1731216446728,0.01611013,79636.0,79627.0,0.0252384]
[1731216446925,0.00013462,79637.0,79627.0,0.0252384]
[1731216447224,0.01653695,79636.0,79628.0,0.1894861]
[1731216447421,0.00013462,79637.0,79627.0,0.0252384]
[1731216448025,0.00013462,79637.0,79627.0,9.38e-05]
[1731216448228,0.0173859,79636.0,79627.0,9.38e-05]
[1731216448426,0.0173859,79635.0,79627.0,9.38e-05]
[1731216448627,0.00013462,79637.0,79627.0,9.38e-05]
[1731216448825,0.01738901,79636.0,79627.0,9.38e-05]
[1731216449024,0.01738901,79635.0,79627.0,9.38e-05]
[1731216449328,0.00013462,79637.0,79628.0,0.18914711]
[1731216449517,0.00013462,79637.0,79627.0,9.38e-05]
[1731216449518,0.01733111,79636.0,79627.0,9.38e-05]
[1731216449718,0.01733111,79635.0,79627.0,9.38e-05]
[1731216449923,0.00013462,79637.0,79634.0,0.3608]
[1731216450121,0.0173282,79636.0,79627.0,9.38e-05]
[1731216450427,0.0173282,79635.0,79628.0,0.02512969]
[1731216450624,0.0173282,79634.0,79627.0,9.38e-05]
[1731216450829,0.0173282,79633.0,79627.0,9.38e-05]
[1731216451027,0.3608,79631.0,79627.0,9.38e-05]
[1731216451430,0.0173282,79630.0,79627.0,9.38e-05]
[1731216451635,0.0173282,79629.0,79627.0,9.38e-05]
[1731216451928,0.0173282,79628.0,79627.0,0.3608938]
[1731216452229,0.46326001,79632.0,79627.0,0.3608938]
[1731216452426,0.46326001,79632.0,79628.0,0.0628]
[1731216452427,0.42376,79632.0,79628.0,0.0628]
[1731216452624,0.00013462,79637.0,79628.0,0.24994777]
[1731216452829,0.00013462,79637.0,79635.0,0.3608]
[1731216453534,0.00013462,79637.0,79636.0,0.00013459]
[1731216453726,0.00013462,79637.0,79636.0,0.18872292]
[1731216453926,0.00013462,79637.0,79636.0,0.36093459]
[1731216454127,0.00013462,79637.0,79636.0,0.55000628]
[1731216454629,0.2333,79647.0,79636.0,1.22672628]
[1731216454828,0.2333,79647.0,79644.0,0.3608]
[1731216455628,0.00010028,79646.0,79644.0,0.3608]
[1731216456335,0.00010028,79646.0,79636.0,0.36093459]
[1731216456336,0.61145564,79645.0,79638.0,0.01586452]
[1731216456529,0.61145564,79645.0,79636.0,0.36093459]
[1731216456530,0.00010028,79646.0,79636.0,0.3775421]
[1731216456728,0.00010028,79646.0,79645.0,0.3608]
[1731216457533,0.00010028,79646.0,79645.0,0.39845]
[1731216459428,0.00010028,79646.0,79645.0,0.77513]
[1731216459932,0.24,79655.0,79645.0,0.77513]
[1731216460139,0.24,79655.0,79652.0,0.3608]
[1731216462338,0.32306,79653.0,79645.0,0.07905687]
[1731216462526,0.32306,79653.0,79646.0,0.0628]
[1731216462730,0.24,79655.0,79637.0,0.0628]
[1731216463029,0.24,79655.0,79647.0,0.323]
[1731216463542,0.24,79655.0,79647.0,0.29785]
[1731216463836,0.24,79655.0,79648.0,0.0628]
[1731216466634,0.24,79655.0,79654.0,0.4236]
[1731216467035,0.24,79655.0,79654.0,0.0628]
[1731216467636,0.24,79655.0,79648.0,0.0628]
[1731216467835,0.6008,79655.0,79648.0,0.0628]
[1731216468036,0.6008,79655.0,79638.0,0.0628]
[1731216468234,0.3608,79645.0,79638.0,0.0628]
[1731216468638,0.60248,79655.0,79638.0,0.0386688]
[1731216468842,0.3608,79648.0,79637.0,0.37745648]
[1731216469144,0.61854429,79655.0,79648.0,0.0628]
[1731216469341,0.61682428,79655.0,79648.0,0.0628]
[1731216469548,0.6008,79655.0,79648.0,0.0628]
[1731216471943,0.6008,79655.0,79637.0,0.37745648]
[1731216471944,0.6008,79655.0,79638.0,0.0628]
[1731216472138,0.6008,79655.0,79648.0,0.0628]
[1731216473238,0.6008,79655.0,79649.0,0.0628]
[1731216473443,0.27392,79659.0,79649.0,0.0628]
[1731216473444,0.01884001,79664.0,79649.0,0.0628]
[1731216473634,0.01884001,79686.0,79663.0,0.4236]
[1731216473837,0.2334,79694.0,79669.0,0.4236]
[1731216474137,0.2247,79699.0,79692.0,0.00013467]
[1731216474343,0.02,79700.0,79692.0,0.00013467]
[1731216475145,0.02,79700.0,79693.0,1.00475971]
[1731216475348,0.47035564,79739.0,79699.0,0.7216]
[1731216475649,0.47035564,79739.0,79693.0,0.62831971]
[1731216475650,0.2197,79739.0,79738.0,0.3608]
[1731216475946,0.92667092,79739.0,79738.0,0.3608]
[1731216476135,0.76777143,79739.0,79730.0,0.3608]
[1731216476335,0.00168,79746.0,79736.0,0.3608]
[1731216476544,0.37688806,79761.0,79737.0,9.869e-05]
[1731216476741,0.25065564,79742.0,79737.0,0.18905221]
[1731216476942,0.25065564,79742.0,79737.0,9.869e-05]
[1731216477241,0.25065564,79742.0,79723.0,0.3608]
[1731216477443,0.72336001,79744.0,79731.0,0.3608]
[1731216477444,0.00176001,79744.0,79731.0,0.3608]
[1731216477643,0.63029565,79752.0,79728.0,0.3608]
[1731216477845,0.25065564,79742.0,79732.0,0.18778767]
[1731216478145,0.25065564,79742.0,79728.0,0.3608]
[1731216478146,9.869e-05,79741.0,79731.0,0.00012239]
[1731216478341,0.25065564,79732.0,79721.0,0.0417381]
[1731216478543,0.25065564,79732.0,79722.0,0.3608]
[1731216479045,0.25065564,79732.0,79712.0,0.3608]
[1731216479046,0.3608,79723.0,79712.0,0.3608]
[1731216479238,0.25065564,79718.0,79712.0,0.3608]
[1731216479750,0.25065564,79718.0,79706.0,9.678e-05]
[1731216479751,0.3608,79713.0,79706.0,9.678e-05]
[1731216480047,0.3608,79709.0,79700.0,0.00193]
[1731216480240,0.3608,79701.0,79700.0,0.00193]
[1731216480443,0.3608,79709.0,79700.0,0.00193]
[1731216481037,0.62306,79701.0,79684.0,0.00188241]
[1731216481247,0.25065564,79707.0,79684.0,0.00188241]
[1731216481248,0.3608,79694.0,79684.0,0.00188241]
[1731216481442,0.3608,79694.0,79671.0,0.3608]
[1731216481841,0.6769208,79694.0,79671.0,0.3608]
[1731216482038,0.3608,79686.0,79661.0,0.3608]
[1731216482237,0.2198,79685.0,79669.0,0.3608]
[1731216482441,0.25065564,79676.0,79661.0,0.33568]
[1731216482641,0.25065564,79676.0,79656.0,9.135e-05]
[1731216482642,0.3608,79670.0,79656.0,9.135e-05]
[1731216482850,0.3608,79670.0,79656.0,0.36089135]
[1731216483745,0.3608,79670.0,79657.0,0.0628]
[1731216484548,0.2237,79669.0,79657.0,0.0628]
[1731216485957,0.3608,79662.0,79649.0,0.3608]
[1731216486145,0.3608,79650.0,79632.0,0.01623611]
[1731216486456,0.2331,79649.0,79627.0,0.3608]
[1731216486846,0.36248,79650.0,79637.0,0.3608]
[1731216487049,0.00168,79650.0,79643.0,0.00014676]
[1731216487347,0.2237,79669.0,79649.0,0.3608]
[1731216487348,0.00013759,79655.0,79649.0,0.3608]
[1731216488557,0.00013759,79655.0,79645.0,0.3608]
[1731216489444,0.00013759,79655.0,79645.0,0.61145564]
[1731216489648,0.00013759,79655.0,79654.0,0.3608]
[1731216492456,0.2049376,79669.0,79654.0,0.3733]
[1731216492651,0.20669761,79669.0,79654.0,0.34815]
[1731216492956,0.2049376,79669.0,79654.0,0.323]
[1731216493257,0.2049376,79669.0,79654.0,0.29785]
[1731216493447,0.00013075,79668.0,79662.0,0.0628]
[1731216494849,0.00013075,79668.0,79661.0,0.3608]
[1731216494850,0.00013075,79668.0,79667.0,0.4236]
[1731216495152,0.01884001,79677.0,79667.0,0.4236]
[1731216495462,0.00188364,79686.0,79676.0,0.4236]
[1731216495756,0.00188364,79686.0,79685.0,0.4236]
[1731216496054,0.01884001,79700.0,79685.0,0.4236]
[1731216496354,0.2166,79718.0,79694.0,0.4236]
[1731216496355,9.038e-05,79695.0,79694.0,0.4236]
[1731216496557,9.038e-05,79695.0,79694.0,0.42348]
[1731216496753,3.8e-07,79695.0,79694.0,1.5692118]
[1731216497355,0.3608,79749.0,79696.0,0.06256]
[1731216497554,0.3608,79749.0,79736.0,0.3608]
[1731216497555,0.01884001,79746.0,79736.0,0.3608]
[1731216498052,0.01880001,79746.0,79736.0,0.3608]
[1731216498263,0.00011993,79745.0,79736.0,0.3608]
[1731216499051,0.00011993,79745.0,79743.0,0.3608]
[1731216499369,0.61145564,79744.0,79722.0,0.3608]
[1731216499664,0.25065564,79724.0,79707.0,0.06256]
[1731216499861,0.3608,79713.0,79693.0,0.3608]
[1731216500056,0.25065564,79695.0,79684.0,0.3608]
[1731216500253,0.3608,79695.0,79684.0,0.3608]
[1731216500461,0.25065564,79693.0,79684.0,0.3608]
[1731216501364,0.00014324,79692.0,79684.0,0.3608]
[1731216501559,0.3608,79687.0,79668.0,0.00188252]
[1731216501755,0.3608,79676.0,79668.0,0.00188252]
[1731216502060,0.36076,79676.0,79668.0,0.00188252]
[1731216502960,0.36076,79676.0,79670.0,0.0628]
[1731216503856,0.25065564,79687.0,79670.0,0.0628]
[1731216503857,0.3608,79683.0,79670.0,0.0628]
[1731216504260,0.3608,79676.0,79670.0,0.0628]
[1731216504563,0.3608,79683.0,79670.0,0.0628]
[1731216505166,0.3608,79676.0,79670.0,0.0628]
[1731216505366,0.3608,79676.0,79671.0,0.0628]
[1731216506368,0.39536001,79675.0,79672.0,0.03768]
[1731216506568,0.3608,79673.0,79668.0,0.00188252]
[1731216506767,0.32306,79673.0,79668.0,0.00188252]
[1731216507357,0.32306,79673.0,79621.0,0.3608]
[1731216507358,0.25065564,79655.0,79621.0,0.3608]
[1731216507562,0.3608,79631.0,79621.0,0.3608]
[1731216507863,0.25065564,79638.0,79621.0,0.3608]
[1731216508370,0.25065564,79628.0,79621.0,0.3608]
[1731216508667,0.25065564,79628.0,79614.0,0.00014499]
[1731216508668,0.3608,79626.0,79614.0,0.00014499]
[1731216508968,0.25065564,79615.0,79614.0,0.00014499]
[1731216509663,0.25065564,79615.0,79607.0,0.03586688]
[1731216509664,0.98825564,79615.0,79607.0,0.03586688]
[1731216509866,0.3608,79608.0,79607.0,0.03586688]
[1731216510766,0.36076,79608.0,79607.0,0.03586688]
[1731216511772,0.61145564,79616.0,79607.0,0.03586688]
[1731216511972,0.3608,79609.0,79607.0,0.03586688]
[1731216512363,0.3608,79609.0,79608.0,0.0628]
[1731216514070,0.3608,79621.0,79608.0,0.4236]
[1731216516675,0.25065564,79617.0,79608.0,0.4236]
[1731216516978,0.3608,79621.0,79608.0,0.4236]
[1731216517678,0.25065564,79627.0,79619.0,0.3733]
[1731216517679,0.01888,79620.0,79619.0,0.3733]
[1731216518388,0.01888,79620.0,79619.0,0.0125]
[1731216519079,0.39568,79620.0,79604.0,0.00188436]
[1731216519383,0.01888,79620.0,79615.0,0.3608]
[1731216519576,0.01888,79620.0,79605.0,0.3608]
[1731216519776,0.3608,79614.0,79606.0,0.0628]
[1731216520081,0.01888,79620.0,79614.0,0.0628]
[1731216520382,0.3608,79615.0,79601.0,0.02515035]
[1731216520887,0.01888,79620.0,79601.0,0.02515035]
[1731216521179,0.01888,79620.0,79605.0,0.3608]
[1731216522380,0.01888,79620.0,79606.0,0.0628]
[1731216524479,0.01888,79620.0,79615.0,0.3608]
[1731216524988,0.01888,79620.0,79606.0,0.0628]
[1731216525293,0.01888,79620.0,79613.0,0.0628]
[1731216525679,0.01664632,79629.0,79619.0,0.3608]
[1731216525680,0.00188489,79628.0,79619.0,0.3608]
[1731216525882,0.01664632,79629.0,79627.0,0.3608]
[1731216526085,0.3608,79647.0,79627.0,0.3608]
[1731216526380,0.01884001,79644.0,79627.0,0.3608]
[1731216526984,0.3608,79647.0,79636.0,0.3608]
[1731216528386,0.611589,79637.0,79627.0,0.01590645]
[1731216528598,0.3608,79628.0,79613.0,0.0628]
[1731216529387,0.3608,79628.0,79611.0,0.00188395]
[1731216529686,0.3608,79628.0,79612.0,0.0628]
[1731216530590,0.3608,79628.0,79611.0,0.00188395]
[1731216530787,0.3608,79628.0,79612.0,0.0628]
[1731216531586,0.3608,79620.0,79612.0,0.0628]
[1731216531781,0.32936663,79620.0,79613.0,0.0628]
[1731216532796,0.32936663,79620.0,79614.0,0.0628]
[1731216533293,0.3608,79626.0,79614.0,0.0628]
[1731216533788,0.3608,79626.0,79615.0,0.0628]
[1731216534785,0.3608,79626.0,79611.0,0.00188395]
[1731216534997,0.3608,79626.0,79616.0,0.0628]
[1731216535385,0.250789,79637.0,79616.0,0.3628]
[1731216535386,0.00013336,79637.0,79616.0,0.3628]
[1731216535586,0.00013336,79637.0,79625.0,0.0628]
[1731216535998,0.00013336,79637.0,79629.0,0.09834369]
[1731216536298,0.00013336,79637.0,79629.0,0.0628]
[1731216537389,0.00013336,79637.0,79624.0,0.35178534]
[1731216537593,0.00013336,79637.0,79634.0,0.0125]
[1731216537989,0.01884001,79651.0,79633.0,0.323]
[1731216538199,0.01884001,79651.0,79633.0,0.29785]
[1731216538591,0.3608,79652.0,79634.0,0.03765]
[1731216538991,8.962e-05,79635.0,79634.0,0.03765]
[1731216540403,0.36088962,79635.0,79634.0,0.03765]
[1731216540700,8.962e-05,79635.0,79634.0,0.03765]
[1731216540897,0.36088962,79635.0,79634.0,0.03765]
[1731216545301,0.3608,79650.0,79634.0,0.29249]
[1731216545503,0.01884001,79664.0,79634.0,0.29249]
[1731216545504,0.13756816,79718.0,79714.0,0.5182997]
[1731216545713,0.01648516,79761.0,79758.0,0.3608]
[1731216545895,0.5732,79831.0,79781.0,0.0125]
[1731216545896,0.2124,79831.0,79781.0,0.0125]
[1731216546201,0.03851423,79830.0,79829.0,0.3608]
[1731216546402,0.00012455,79830.0,79821.0,8.979e-05]
[1731216546604,0.00012455,79830.0,79828.0,0.2902377]
[1731216546805,1e-08,79830.0,79828.0,0.2902377]
[1731216547301,1e-08,79830.0,79829.0,0.3758]
[1731216547493,1e-08,79830.0,79828.0,0.2902377]
[1731216547694,1e-08,79830.0,79829.0,0.3758]
[1731216548305,1e-08,79830.0,79829.0,0.6758]
[1731216548497,1e-08,79830.0,79829.0,0.56304885]
[1731216548703,1e-08,79830.0,79829.0,0.86304885]
[1731216548900,1e-08,79830.0,79828.0,0.2902377]
[1731216549105,1e-08,79830.0,79823.0,0.3608]
[1731216549403,1e-08,79830.0,79824.0,0.18845363]
[1731216549711,1e-08,79830.0,79828.0,0.3608]
[1731216550106,1e-08,79830.0,79829.0,0.18845363]
[1731216550404,1e-08,79830.0,79828.0,0.3608]
[1731216551398,1e-08,79830.0,79821.0,8.979e-05]
[1731216552903,0.3608,79829.0,79823.0,0.3608]
[1731216553103,1e-08,79830.0,79823.0,0.3608]
[1731216553298,1e-08,79830.0,79821.0,8.979e-05]
[1731216553503,0.3608,79824.0,79821.0,8.979e-05]
[1731216553807,1e-08,79830.0,79821.0,8.979e-05]
[1731216554402,0.25065564,79822.0,79821.0,8.979e-05]
[1731216554602,0.25065564,79822.0,79798.0,0.3608]
[1731216554804,0.3608,79809.0,79798.0,0.3608]
[1731216555111,0.3608,79818.0,79805.0,0.3608]
[1731216555302,0.0188,79829.0,79817.0,0.3608]
[1731216555502,0.0188,79829.0,79811.0,0.00014539]
[1731216555699,0.3608,79824.0,79811.0,0.00014539]
[1731216555999,0.3608,79824.0,79811.0,0.36094539]
[1731216556205,0.25065564,79823.0,79811.0,0.36094539]
[1731216556603,0.55065564,79823.0,79811.0,0.36094539]
[1731216557102,0.25065564,79823.0,79813.0,0.3608]
[1731216557304,0.0188,79822.0,79814.0,0.0628]
[1731216557608,0.3608,79825.0,79814.0,0.03765]
[1731216558708,1e-08,79830.0,79821.0,0.3733]
[1731216558910,1e-08,79830.0,79828.0,0.3608]
[1731216560600,1e-08,79830.0,79829.0,0.3758]
[1731216561102,0.25065564,79875.0,79829.0,1.58425547]
[1731216561410,0.3608,79856.0,79844.0,0.3608]
[1731216561607,0.26368,79855.0,79839.0,0.3608]
[1731216561803,0.3608,79862.0,79839.0,0.3608]
[1731216562006,0.3608,79854.0,79839.0,0.3608]
[1731216562211,0.26368,79854.0,79839.0,0.3608]
[1731216562408,0.26368,79854.0,79840.0,0.0125]
[1731216564109,0.00015299,79861.0,79850.0,0.0125]
[1731216564409,0.00015299,79861.0,79860.0,0.3608]
[1731216564609,0.00015299,79861.0,79860.0,0.3733]
[1731216564909,0.00015299,79861.0,79860.0,0.74894]
[1731216565609,0.00015299,79861.0,79860.0,0.3733]
[1731216566104,0.00015299,79861.0,79859.0,0.0125]
[1731216566300,0.00015299,79861.0,79860.0,0.56151059]
[1731216566507,0.00015299,79861.0,79860.0,0.37343643]
[1731216566702,0.00015299,79861.0,79860.0,0.01263643]
[1731216567511,0.2636,79876.0,79858.0,0.27286643]
[1731216567512,0.3608,79876.0,79858.0,0.27286643]
[1731216567715,0.25065564,79870.0,79858.0,0.27286643]
[1731216568015,0.2636,79882.0,79866.0,0.0628]
[1731216568202,0.23995564,79886.0,79866.0,0.03765]
[1731216568203,0.25065564,79870.0,79866.0,0.03765]
[1731216568406,0.25065564,79880.0,79866.0,0.03765]
[1731216568603,0.25065564,79880.0,79865.0,0.3105]
[1731216569015,0.25065564,79867.0,79859.0,0.06294854]
[1731216569514,0.3608,79864.0,79859.0,0.06294854]
[1731216570107,0.3608,79864.0,79859.0,0.00014854]
[1731216570706,0.25508,79866.0,79859.0,0.00014854]
[1731216571824,0.3608,79862.0,79850.0,0.0628]
[1731216572112,0.25065564,79851.0,79843.0,0.0628]
[1731216572315,0.3608,79844.0,79814.0,0.3608]
[1731216572612,0.3608,79823.0,79804.0,0.3608]
[1731216572912,0.35363218,79823.0,79807.0,0.00011286]
[1731216573113,0.3608,79812.0,79807.0,0.00011286]
[1731216573311,0.25504,79811.0,79798.0,0.03768]
[1731216573503,0.3608,79799.0,79779.0,0.33568]
[1731216573709,0.3608,79792.0,79775.0,0.01658063]
[1731216573914,0.3608,79792.0,79779.0,0.0628]
[1731216574217,0.27504001,79811.0,79779.0,0.0628]
[1731216574218,0.3608,79784.0,79779.0,0.0628]
[1731216574408,0.61584,79784.0,79779.0,0.0628]
[1731216574604,0.3608,79784.0,79779.0,0.0628]
[1731216574806,0.61584,79784.0,79779.0,0.0628]
[1731216575007,0.61584,79784.0,79769.0,0.00188069]
[1731216575313,0.00015995,79791.0,79769.0,0.00188069]
[1731216575516,0.00015995,79791.0,79787.0,0.3608]
[1731216575714,0.00015995,79791.0,79769.0,0.00188069]
[1731216576014,0.00015995,79791.0,79786.0,0.3608]
[1731216578007,0.3608,79800.0,79786.0,0.3608]
[1731216578413,0.3608,79790.0,79773.0,0.3608]
[1731216578915,0.3608,79800.0,79783.0,0.3608]
[1731216579113,8.923e-05,79799.0,79791.0,0.3608]
[1731216579318,8.923e-05,79799.0,79798.0,0.3608]
[1731216581716,8.923e-05,79799.0,79783.0,0.37361238]
[1731216581911,8.923e-05,79799.0,79791.0,0.3608]
[1731216582106,8.923e-05,79799.0,79792.0,0.3608]
[1731216582306,8.923e-05,79799.0,79783.0,0.34846238]
[1731216582613,8.923e-05,79799.0,79792.0,0.0628]
[1731216583018,0.32306,79798.0,79783.0,0.28535]
[1731216583313,0.3608,79791.0,79783.0,0.28535]
[1731216583516,0.3608,79791.0,79769.0,0.00188069]
[1731216583911,0.3608,79783.0,79769.0,0.00188069]
[1731216584113,0.3608,79783.0,79769.0,0.01506426]
[1731216584420,0.3608,79782.0,79769.0,0.00188069]
[1731216585024,0.3608,79775.0,79769.0,0.00188069]
[1731216585220,0.2462,79774.0,79769.0,0.00188069]
[1731216585414,0.3608,79775.0,79761.0,0.00015072]
[1731216585609,0.2462,79774.0,79761.0,0.00015072]
[1731216586009,0.3608,79768.0,79761.0,0.00015072]
[1731216586224,0.25065564,79766.0,79753.0,0.00188087]
[1731216586413,0.25065564,79754.0,79753.0,0.00188087]
[1731216586816,0.25065564,79754.0,79744.0,0.03783072]
[1731216587108,0.3608,79751.0,79744.0,0.03783072]
[1731216587324,0.25065564,79754.0,79736.0,0.01286144]
[1731216587524,0.25065564,79754.0,79736.0,0.0628]
[1731216589022,0.3608,79755.0,79736.0,0.04867]
[1731216589210,0.2275,79767.0,79736.0,0.34867]
[1731216589419,0.24628,79766.0,79744.0,0.03454]
[1731216590213,0.2275,79767.0,79744.0,0.03454]
[1731216590424,0.24628,79766.0,79744.0,0.03454]
[1731216590916,0.24628,79766.0,79752.0,0.03454]
[1731216591716,0.2275,79767.0,79758.0,0.3608]
[1731216591916,0.2275,79767.0,79759.0,0.03454]
[1731216592517,0.25065564,79763.0,79753.0,0.3608]
[1731216592719,0.25065564,79763.0,79754.0,0.0628]
[1731216592925,0.23724,79771.0,79754.0,0.0628]
[1731216593228,0.01893422,79773.0,79754.0,0.0628]
[1731216593429,0.01893422,79773.0,79753.0,0.3608]
[1731216593430,9.421e-05,79773.0,79761.0,0.0628]
[1731216593722,0.25074985,79773.0,79761.0,0.0628]
[1731216593924,0.61154985,79773.0,79761.0,0.0628]
[1731216594116,0.61145564,79762.0,79761.0,0.03768]
[1731216594427,0.25065564,79772.0,79761.0,0.03768]
[1731216597028,0.36089421,79773.0,79761.0,0.0628]
[1731216597225,0.3608,79763.0,79761.0,0.0628]
[1731216597420,0.36089421,79773.0,79739.0,0.3608]
[1731216597616,0.36089421,79773.0,79739.0,0.33565]
[1731216597822,0.3608,79766.0,79741.0,0.0628]
[1731216598022,0.01884001,79772.0,79740.0,0.0628]
[1731216598224,0.01884001,79772.0,79749.0,0.0628]
[1731216598618,0.01884001,79772.0,79760.0,0.0628]
[1731216599025,0.3608,79764.0,79760.0,0.0628]
[1731216599229,0.01884001,79772.0,79760.0,0.0628]
[1731216599529,0.01884001,79772.0,79757.0,0.0628]
[1731216599725,9.421e-05,79773.0,79766.0,0.0628]
[1731216600833,9.421e-05,79773.0,79758.0,0.0628]
[1731216600834,0.3608,79771.0,79758.0,0.0628]
[1731216601028,0.61145564,79759.0,79737.0,0.0628]
[1731216601232,0.23724,79759.0,79747.0,0.0628]
[1731216601831,9.421e-05,79773.0,79747.0,0.0628]
[1731216602029,9.421e-05,79773.0,79754.0,0.0628]
[1731216602332,9.421e-05,79773.0,79761.0,0.0628]
[1731216602830,0.3608,79769.0,79762.0,0.0628]
[1731216603331,0.3608,79769.0,79732.0,0.04243805]
[1731216603332,0.3608,79763.0,79732.0,0.04243805]
[1731216603535,0.3608,79748.0,79724.0,0.3608]
[1731216603733,0.59804,79749.0,79732.0,0.0628]
[1731216603931,0.23724,79749.0,79732.0,0.0628]
[1731216604331,0.23724,79749.0,79740.0,0.0628]
[1731216604535,0.61269565,79758.0,79740.0,0.0628]
[1731216604828,0.61145564,79741.0,79729.0,0.0628]
[1731216605434,0.23724,79746.0,79736.0,0.0628]
[1731216605940,0.25065564,79742.0,79736.0,0.0628]
[1731216606429,0.3608,79737.0,79728.0,0.00199652]
[1731216606638,0.61145564,79729.0,79726.0,0.03967652]
[1731216606828,0.61145564,79729.0,79700.0,0.0628]
[1731216606829,0.25065564,79727.0,79700.0,0.0628]
[1731216607028,0.23728,79726.0,79718.0,0.0628]
[1731216607428,0.3608,79719.0,79718.0,0.0628]
[1731216607635,0.36090325,79719.0,79718.0,0.0628]
[1731216608138,0.36090325,79719.0,79696.0,0.0628]
[1731216608339,0.3608,79706.0,79696.0,0.0628]
[1731216609136,0.3608,79706.0,79694.0,0.0628]
[1731216610134,0.31683238,79706.0,79693.0,0.0628]
[1731216610338,0.27914613,79706.0,79696.0,0.0628]
[1731216610941,0.27914613,79706.0,79698.0,0.0628]
[1731216611445,0.27914613,79706.0,79700.0,0.0628]
[1731216611739,0.24140613,79706.0,79700.0,0.0628]
[1731216611941,0.24140613,79706.0,79701.0,0.3764]
[1731216612139,0.24140613,79706.0,79693.0,0.0628]
[1731216612334,0.00010325,79719.0,79705.0,0.0628]
[1731216612531,0.00010325,79719.0,79713.0,0.0628]
[1731216612532,0.01088898,79714.0,79713.0,0.0628]
[1731216612733,0.00010325,79719.0,79713.0,0.0628]
[1731216612933,0.01088898,79715.0,79713.0,0.0628]
[1731216613343,0.00010325,79719.0,79713.0,0.0628]
[1731216613543,0.00010325,79719.0,79705.0,0.3608]
[1731216613544,0.00010325,79719.0,79706.0,0.0628]
[1731216614439,0.00010325,79719.0,79713.0,0.0628]
[1731216614838,0.00010325,79719.0,79713.0,0.4236]
[1731216615337,0.02072243,79735.0,79713.0,0.4236]
[1731216615541,0.02072243,79735.0,79724.0,0.0628]
[1731216616238,0.00012826,79734.0,79724.0,0.0628]
[1731216617448,0.00012826,79734.0,79732.0,0.38874]
[1731216617747,0.1312,79741.0,79734.0,0.0628]
[1731216617948,0.1312,79741.0,79734.0,0.03765]
[1731216618147,0.1312,79741.0,79731.0,0.28541]
[1731216618447,0.1312,79741.0,79738.0,0.3608]
[1731216618652,0.0001118,79740.0,79739.0,0.0628]
[1731216619148,0.08591493,79741.0,79740.0,0.43904]
[1731216619751,0.00188221,79761.0,79740.0,0.92651816]
[1731216620062,0.00188221,79761.0,79760.0,0.4236]
[1731216620353,0.00198533,79761.0,79760.0,0.0628]
[1731216620547,0.01463533,79761.0,79760.0,0.0628]
[1731216620944,0.01463533,79761.0,79743.0,0.00188111]
[1731216621152,0.01463533,79761.0,79741.0,0.03956111]
[1731216621153,0.01265,79742.0,79741.0,0.03956111]
[1731216621453,0.01265,79742.0,79736.0,0.00011661]